bitfinex/quotes_BTCUSD_20260126
["timestamp","ask_amount","ask_price","bid_price","bid_amount"]
[1769438919403,0.03,88186.0,88168.0,0.02476909]
[1769438919616,0.03,88186.0,88170.0,0.02476909]
[1769438920279,0.0002612,88193.0,88177.0,0.66814254]
[1769438920494,0.0002612,88193.0,88173.0,0.66814254]
[1769438920710,0.0002612,88193.0,88174.0,0.02476909]
[1769438921407,0.0002612,88193.0,88176.0,0.02476909]
[1769438921610,0.0002612,88193.0,88175.0,0.66814254]
[1769438921611,0.0002612,88193.0,88178.0,0.02476909]
[1769438922031,0.0002612,88193.0,88178.0,0.01134069]
[1769438922406,0.0002612,88193.0,88179.0,0.02476909]
[1769438922828,0.03,88192.0,88179.0,0.02476909]
[1769438923656,0.0002612,88193.0,88169.0,0.1744]
[1769438923657,0.03,88190.0,88169.0,0.17436]
[1769438923861,0.03,88190.0,88170.0,0.01991291]
[1769438924094,0.03,88190.0,88171.0,0.02476909]
[1769438924298,0.03,88190.0,88172.0,0.66814254]
[1769438924515,0.0454,88208.0,88181.0,0.66814254]
[1769438924732,0.05709359,88218.0,88191.0,0.02476909]
[1769438924950,0.6474162,88218.0,88191.0,0.02476909]
[1769438925327,0.70409398,88218.0,88191.0,0.02476909]
[1769438925530,0.01133619,88213.0,88191.0,0.02476909]
[1769438925697,0.03,88214.0,88191.0,0.02476909]
[1769438925901,0.03,88214.0,88193.0,0.02476909]
[1769438926324,0.03,88214.0,88197.0,0.02476909]
[1769438926586,0.03,88214.0,88192.0,0.01991291]
[1769438926587,0.6470015,88234.0,88204.0,0.01133735]
[1769438926778,0.6470015,88234.0,88192.0,0.01991291]
[1769438926779,0.03,88233.0,88211.0,0.02476909]
[1769438927031,0.03,88233.0,88214.0,0.02476909]
[1769438927186,0.03,88233.0,88216.0,0.02476909]
[1769438927798,0.03,88236.0,88216.0,0.02476909]
[1769438928007,0.03,88236.0,88215.0,0.060594]
[1769438928008,0.03,88228.0,88215.0,0.060594]
[1769438928263,0.03,88228.0,88200.0,0.47493254]
[1769438928264,0.03,88214.0,88187.0,0.02476909]
[1769438928462,0.47493254,88230.0,88187.0,0.02476909]
[1769438928463,0.03,88203.0,88187.0,0.02476909]
[1769438929256,0.03,88203.0,88169.0,0.22683572]
[1769438929257,0.03,88203.0,88170.0,0.48627426]
[1769438929469,0.04133786,88200.0,88172.0,0.02368945]
[1769438929725,0.03,88200.0,88172.0,0.02368945]
[1769438930091,0.03,88200.0,88175.0,0.02368945]
[1769438930554,0.03,88199.0,88175.0,0.02368945]
[1769438931189,0.03,88199.0,88175.0,0.03503053]
[1769438931425,0.03,88199.0,88189.0,0.47493254]
[1769438931624,0.01133568,88217.0,88190.0,0.07231666]
[1769438932077,0.01133581,88216.0,88190.0,0.07231666]
[1769438932505,0.03,88216.0,88190.0,0.07231666]
[1769438933246,0.03,88216.0,88193.0,0.03502821]
[1769438933485,0.63384031,88240.0,88210.0,0.66286622]
[1769438933703,0.03,88237.0,88211.0,0.66286622]
[1769438934136,0.03,88237.0,88215.0,0.02368945]
[1769438934795,0.03,88236.0,88220.0,0.47493254]
[1769438935020,0.03,88236.0,88221.0,0.04862721]
[1769438935681,0.03,88236.0,88224.0,0.01133478]
[1769438935913,0.03,88235.0,88221.0,0.73518288]
[1769438936668,0.0004147,88243.0,88221.0,0.73518288]
[1769438936669,0.0004147,88243.0,88223.0,0.66286622]
[1769438936909,0.0004147,88243.0,88224.0,0.2061597]
[1769438937214,0.03,88242.0,88224.0,0.2061597]
[1769438937965,0.03,88242.0,88225.0,0.0350241]
[1769438938161,0.03,88241.0,88226.0,0.68655567]
[1769438938385,0.03,88241.0,88227.0,0.05667138]
[1769438938585,0.03,88241.0,88228.0,0.07231666]
[1769438938785,0.0004147,88243.0,88232.0,0.01133375]
[1769438938985,0.0004147,88243.0,88229.0,0.68655567]
[1769438939808,0.0004147,88243.0,88229.0,0.02368945]
[1769438940062,0.0004147,88243.0,88221.0,0.02368945]
[1769438940280,0.0004147,88243.0,88228.0,0.17428]
[1769438940446,0.0004147,88243.0,88225.0,0.17428]
[1769438940649,0.04133247,88242.0,88221.0,0.02368945]
[1769438940808,0.01174704,88243.0,88210.0,0.47493254]
[1769438940809,0.00999999,88225.0,88220.0,0.17424]
[1769438941150,0.0004147,88243.0,88223.0,0.68655567]
[1769438941598,0.0004147,88243.0,88220.0,0.64917254]
[1769438941769,0.03,88240.0,88220.0,0.17424]
[1769438941944,0.03,88240.0,88212.0,0.02368945]
[1769438941945,0.09800109,88234.0,88212.0,0.02368945]
[1769438942120,0.03,88234.0,88218.0,0.17424]
[1769438942530,0.0004147,88243.0,88225.0,0.66286622]
[1769438942760,0.0004147,88243.0,88230.0,0.47493254]
[1769438942981,0.0004,88250.0,88231.0,0.66286622]
[1769438943187,0.0004,88250.0,88232.0,0.02368945]
[1769438943427,0.0004,88250.0,88222.0,0.02368945]
[1769438943631,0.0004,88250.0,88223.0,0.68655567]
[1769438943834,0.0004,88250.0,88224.0,0.68655567]
[1769438944016,0.03,88249.0,88224.0,0.68655567]
[1769438944183,0.03,88249.0,88225.0,0.17424]
[1769438944404,0.03,88249.0,88231.0,0.66286622]
[1769438945228,0.03,88248.0,88226.0,0.02368945]
[1769438946065,0.0004,88250.0,88226.0,0.02368945]
[1769438946272,0.02347584,88248.0,88225.0,0.17424]
[1769438946487,0.02347584,88248.0,88209.0,0.02368945]
[1769438946488,0.03,88236.0,88209.0,0.02368945]
[1769438946751,0.03,88236.0,88221.0,0.67420138]
[1769438946946,0.03,88236.0,88223.0,0.68655567]
[1769438947592,0.03,88235.0,88223.0,0.68655567]
[1769438947796,0.03,88235.0,88208.0,0.02368945]
[1769438948149,0.03,88235.0,88202.0,0.01133761]
[1769438948150,0.03,88225.0,88198.0,0.66286622]
[1769438948348,0.03,88223.0,88200.0,0.06802684]
[1769438948525,0.03,88223.0,88200.0,1.13779876]
[1769438948740,0.03,88216.0,88188.0,0.66286622]
[1769438948914,0.54281424,88214.0,88192.0,0.17424]
[1769438949279,0.03,88214.0,88197.0,0.66286622]
[1769438950052,0.03,88213.0,88197.0,0.67420447]
[1769438950256,0.03,88213.0,88197.0,0.66286622]
[1769438950773,0.03,88213.0,88201.0,0.02368945]
[1769438950949,0.03,88212.0,88201.0,0.02368945]
[1769438951154,0.03,88212.0,88202.0,0.06978942]
[1769438951332,0.54281424,88212.0,88183.0,0.02368945]
[1769438951779,0.03,88203.0,88175.0,0.02368945]
[1769438951990,0.54281424,88203.0,88179.0,0.17424]
[1769438952777,0.08015976,88209.0,88179.0,0.18558056]
[1769438952778,0.03,88202.0,88179.0,0.18558056]
[1769438952979,0.03,88202.0,88179.0,0.17424]
[1769438953274,0.03,88202.0,88181.0,0.01175501]
[1769438953496,0.03,88202.0,88188.0,0.67420563]
[1769438953697,0.17424,88219.0,88202.0,0.01]
[1769438953900,0.14283646,88218.0,88202.0,0.01]
[1769438954129,0.03,88216.0,88202.0,0.01]
[1769438954337,0.03,88210.0,88182.0,0.01134018]
[1769438954665,0.03,88210.0,88181.0,0.18599501]
[1769438954870,0.03,88196.0,88181.0,0.0004147]
[1769438955426,0.66297367,88196.0,88181.0,0.0004147]
[1769438955827,0.03,88194.0,88181.0,0.0004147]
[1769438956540,0.03,88190.0,88163.0,0.66286622]
[1769438956753,0.66256312,88190.0,88163.0,0.66286622]
[1769438957156,0.03,88188.0,88163.0,0.66286622]
[1769438957358,0.63185312,88190.0,88163.0,0.66286622]
[1769438957744,0.39678106,88190.0,88163.0,0.66286622]
[1769438957944,0.39678106,88190.0,88168.0,0.01134198]
[1769438958216,0.03,88190.0,88167.0,0.70187803]
[1769438958387,0.03,88190.0,88162.0,0.17424]
[1769438958388,0.03,88190.0,88177.0,0.01134082]
[1769438958633,0.01133632,88212.0,88182.0,0.02361634]
[1769438958634,0.13239098,88209.0,88182.0,0.02361634]
[1769438958764,0.05668873,88201.0,88183.0,0.05325707]
[1769438958952,0.05668873,88201.0,88169.0,0.02361634]
[1769438958953,0.14752926,88199.0,88174.0,0.01134121]
[1769438959148,0.20200024,88198.0,88169.0,0.02361634]
[1769438959363,0.03,88196.0,88170.0,0.01134172]
[1769438959572,0.03,88196.0,88177.0,0.001]
[1769438959967,0.03,88196.0,88173.0,0.06804768]
[1769438960167,0.03,88196.0,88175.0,0.01134108]
[1769438960364,0.03,88195.0,88179.0,0.65832064]
[1769438960569,0.03,88195.0,88180.0,0.48627298]
[1769438960811,0.1666,88217.0,88188.0,0.01133941]
[1769438960985,0.1240767,88216.0,88188.0,0.02361634]
[1769438961192,0.1666,88217.0,88188.0,0.68193698]
[1769438961445,0.03,88217.0,88202.0,0.01133761]
[1769438961604,0.03,88217.0,88203.0,0.01133748]
[1769438961848,0.03,88217.0,88205.0,0.01133722]
[1769438962035,0.03,88217.0,88204.0,0.02361634]
[1769438962377,0.03,88217.0,88166.0,0.45368564]
[1769438962378,0.03,88203.0,88192.0,0.17428]
[1769438962580,0.03,88203.0,88193.0,0.01231321]
[1769438962786,0.0454,88218.0,88194.0,0.66965927]
[1769438962988,0.0454,88218.0,88195.0,0.01133851]
[1769438963194,0.0454,88218.0,88197.0,0.01133825]
[1769438963397,0.0454,88218.0,88193.0,0.02365197]
[1769438963398,0.03,88217.0,88199.0,0.01133799]
[1769438963604,0.03,88217.0,88202.0,0.66965825]
[1769438963804,0.03,88217.0,88205.0,0.01133722]
[1769438964004,0.03,88217.0,88203.0,0.07953118]
[1769438964005,0.03,88217.0,88203.0,0.75013068]
[1769438964302,0.03,88216.0,88203.0,0.0681937]
[1769438964499,0.03,88216.0,88201.0,0.01133773]
[1769438964651,0.03,88216.0,88197.0,0.66965889]
[1769438964855,0.03,88216.0,88195.0,0.05669241]
[1769438965051,0.03,88216.0,88193.0,0.02361634]
[1769438965254,0.01133478,88224.0,88162.0,0.47444378]
[1769438965255,0.03,88214.0,88186.0,0.01133966]
[1769438965496,0.03,88214.0,88184.0,0.08031537]
[1769438965497,0.03,88212.0,88184.0,0.20923626]
[1769438965671,0.03,88212.0,88185.0,0.01133979]
[1769438965878,0.03,88212.0,88184.0,0.19789634]
[1769438966218,0.03,88202.0,88174.0,0.02361634]
[1769438966392,0.20847285,88202.0,88179.0,0.03071866]
[1769438966574,0.20847285,88202.0,88179.0,0.04205922]
[1769438966781,0.03,88202.0,88184.0,0.01133992]
[1769438967315,0.03,88199.0,88179.0,0.03071866]
[1769438967624,0.03,88199.0,88175.0,0.01134108]
[1769438967824,0.03,88199.0,88179.0,0.02659788]
[1769438968050,0.03,88199.0,88174.0,0.19789634]
[1769438968051,0.03,88197.0,88175.0,0.01134108]
[1769438968228,0.03,88197.0,88174.0,0.20923755]
[1769438968528,0.03,88197.0,88174.0,0.19789634]
[1769438968776,0.03,88197.0,88174.0,0.17428]
[1769438969338,0.03,88197.0,88170.0,0.53052409]
[1769438969339,0.02447098,88184.0,88154.0,0.02361634]
[1769438969541,0.47381674,88190.0,88154.0,0.02361634]
[1769438969542,0.03,88179.0,88154.0,0.08033491]
[1769438969750,0.03,88179.0,88154.0,0.02361634]
[1769438970158,0.03,88179.0,88154.0,0.09167903]
[1769438970315,0.03,88179.0,88155.0,0.01134365]
[1769438970567,0.03,88179.0,88154.0,0.03496012]
[1769438970771,0.03,88179.0,88154.0,0.02361634]
[1769438971221,0.03,88179.0,88155.0,0.01134365]
[1769438971431,0.03,88179.0,88154.0,0.03496012]
[1769438971671,0.03,88179.0,88154.0,0.02361634]
[1769438971864,0.68426744,88179.0,88154.0,0.02361634]
[1769438972075,0.03,88174.0,88153.0,0.000456]
[1769438972249,0.03,88168.0,88153.0,0.000456]
[1769438972461,0.03,88166.0,88142.0,0.02361634]
[1769438972673,0.03,88166.0,88130.0,0.23828276]
[1769438972674,0.01,88142.0,88126.0,0.0004413]
[1769438972915,0.03,88141.0,88126.0,0.0004413]
[1769438973714,0.03,88142.0,88126.0,0.0004413]
[1769438975896,0.68537928,88142.0,88126.0,0.0004413]
[1769438976518,0.68437928,88142.0,88126.0,0.0004413]
[1769438976728,0.03,88151.0,88126.0,0.0004413]
[1769438976896,0.03,88149.0,88128.0,0.65832064]
[1769438977164,0.03,88149.0,88128.0,0.68193698]
[1769438977559,0.03,88149.0,88128.0,0.02361634]
[1769438978355,0.03,88149.0,88126.0,0.0004413]
[1769438978508,0.03,88147.0,88126.0,0.0004413]
[1769438978714,0.13158201,88147.0,88126.0,0.0004413]
[1769438978947,0.01134378,88154.0,88127.0,0.68193698]
[1769438979148,0.05672386,88147.0,88126.0,0.0004413]
[1769438979323,0.03,88142.0,88126.0,0.0004413]
[1769438980070,0.03,88142.0,88127.0,0.01134726]
[1769438980275,0.03,88142.0,88129.0,0.011347]
[1769438980479,0.03,88141.0,88128.0,0.68193698]
[1769438980690,0.03,88141.0,88128.0,0.69328411]
[1769438980908,0.03,88141.0,88126.0,0.01178868]
[1769438981076,0.03,88141.0,88129.0,0.02361634]
[1769438981287,0.03,88141.0,88130.0,0.14426227]
[1769438981442,0.03,88140.0,88130.0,0.08752801]
[1769438981857,0.03,88140.0,88126.0,0.0004413]
[1769438982077,0.03,88140.0,88126.0,0.0014413]
[1769438982281,0.03,88140.0,88108.0,0.65832064]
[1769438982282,0.03,88138.0,88108.0,0.65832064]
[1769438982496,0.03,88131.0,88100.0,0.0004413]
[1769438982701,0.03,88127.0,88102.0,0.07393297]
[1769438982985,0.03,88127.0,88126.0,0.001]
[1769438983178,0.03,88124.0,88102.0,0.07393297]
[1769438983403,0.60218256,88124.0,88102.0,0.07393297]
[1769438983569,0.60218256,88124.0,88101.0,0.0002]
[1769438983807,0.03,88122.0,88101.0,0.0002]
[1769438984225,0.03,88122.0,88091.0,0.27709915]
[1769438984226,0.03,88116.0,88091.0,0.02236354]
[1769438984441,0.62780643,88114.0,88092.0,0.00585212]
[1769438985418,0.62780643,88114.0,88093.0,0.01135163]
[1769438985755,0.03,88114.0,88094.0,0.01135151]
[1769438985886,0.001,88122.0,88099.0,0.02361634]
[1769438985887,0.03,88113.0,88099.0,0.02361634]
[1769438986090,0.03,88113.0,88096.0,0.01135125]
[1769438986267,0.03,88113.0,88100.0,0.01135073]
[1769438986471,0.03,88113.0,88097.0,0.1229539]
[1769438986472,0.03,88113.0,88098.0,0.01135099]
[1769438986666,0.03,88113.0,88100.0,0.01135073]
[1769438986893,0.03,88112.0,88101.0,0.0113506]
[1769438987097,0.03,88112.0,88102.0,0.06810282]
[1769438987299,0.03,88112.0,88102.0,0.01135048]
[1769438987498,0.03,88112.0,88100.0,0.01135073]
[1769438987795,0.03,88111.0,88102.0,0.01135048]
[1769438987978,0.03,88111.0,88101.0,0.0113506]
[1769438988385,0.03,88111.0,88103.0,0.01135035]
[1769438988600,0.03,88111.0,88104.0,0.02601564]
[1769438988805,0.03,88111.0,88103.0,0.01135035]
[1769438988806,0.03,88122.0,88102.0,0.001]
[1769438989008,0.03,88122.0,88101.0,0.0113506]
[1769438989259,0.03,88122.0,88103.0,0.01135035]
[1769438989517,0.03,88122.0,88101.0,0.0123506]
[1769438989721,0.03,88122.0,88102.0,0.01135048]
[1769438990060,0.03,88121.0,88102.0,0.01135048]
[1769438990218,0.03,88121.0,88103.0,0.08183649]
[1769438990631,0.03,88121.0,88103.0,0.07048614]
[1769438990833,0.02396815,88132.0,88103.0,0.07048614]
[1769438990834,0.001,88122.0,88115.0,0.0113488]
[1769438991039,0.001,88122.0,88113.0,0.02261878]
[1769438991241,0.001,88122.0,88114.0,0.01134893]
[1769438991439,0.03,88136.0,88114.0,0.01134893]
[1769438991908,0.03,88136.0,88115.0,0.0113488]
[1769438992076,0.03,88136.0,88114.0,0.09071197]
[1769438992077,0.03,88135.0,88114.0,0.09071222]
[1769438992278,0.03,88135.0,88118.0,0.70274231]
[1769438992486,0.03,88135.0,88120.0,0.01134816]
[1769438992684,0.03,88135.0,88119.0,0.02261878]
[1769438993093,0.03,88141.0,88119.0,0.02261878]
[1769438993748,0.03,88118.0,88102.0,0.02261878]
[1769438994134,0.03,88118.0,88098.0,0.01135099]
[1769438994336,0.03,88118.0,88099.0,0.01135086]
[1769438994490,0.03,88118.0,88097.0,0.01135112]
[1769438994675,0.03,88121.0,88097.0,0.01135112]
[1769438994875,0.03,88121.0,88099.0,0.05675402]
[1769438995229,0.03,88121.0,88099.0,0.01135086]
[1769438995392,0.03,88121.0,88098.0,0.10129846]
[1769438995743,0.03,88114.0,88096.0,0.04544]
[1769438995943,0.03,88110.0,88096.0,0.04544]
[1769438996178,0.53775846,88111.0,88091.0,0.02236354]
[1769438996179,0.03,88106.0,88091.0,0.02236354]
[1769438996394,0.56775846,88106.0,88091.0,0.02236354]
[1769438996842,0.54561856,88102.0,88084.0,0.0002]
[1769438997040,0.03,88098.0,88084.0,0.0002]
[1769438997245,0.54353956,88098.0,88084.0,0.0002]
[1769438997967,0.51353956,88116.0,88098.0,0.00144129]
[1769438998170,0.28717565,88115.0,88098.0,0.00072194]
[1769438998509,0.11273565,88114.0,88098.0,0.00072194]
[1769438999074,0.03,88112.0,88098.0,0.00072194]
[1769438999313,0.03,88110.0,88098.0,0.00072194]
[1769439000356,0.03,88108.0,88098.0,0.00072194]
[1769439000799,0.03,88102.0,88084.0,0.0002]
[1769439001024,0.54353956,88100.0,88084.0,0.0002]
[1769439001995,0.54353956,88100.0,88075.0,0.01135395]
[1769439002246,0.56750771,88100.0,88075.0,0.05577729]
[1769439002440,0.03,88099.0,88079.0,0.64600048]
[1769439002657,0.03,88099.0,88076.0,0.02261878]
[1769439002658,0.03,88099.0,88075.0,0.05565538]
[1769439002888,0.03,88099.0,88085.0,0.01135267]
[1769439003032,0.03,88099.0,88084.0,0.01135279]
[1769439003245,0.05396815,88095.0,88083.0,0.01135292]
[1769439003855,0.05396815,88095.0,88081.0,0.01135318]
[1769439003856,0.05396815,88095.0,88087.0,0.01135241]
[1769439004056,0.03,88095.0,88086.0,0.01135254]
[1769439004251,0.03,88094.0,88090.0,0.01135202]
[1769439004468,0.03,88094.0,88077.0,0.58897904]
[1769439004682,0.03,88094.0,88064.0,0.17444]
[1769439004837,0.08315699,88101.0,88064.0,0.17444]
[1769439004838,0.03,88092.0,88077.0,0.0113537]
[1769439005037,0.03,88092.0,88071.0,0.62322095]
[1769439005322,0.05396815,88092.0,88071.0,0.62322095]
[1769439005510,0.05396815,88092.0,88071.0,0.55502675]
[1769439005715,0.03,88092.0,88071.0,0.52092965]
[1769439006037,0.03,88090.0,88071.0,0.48683255]
[1769439006318,0.05396815,88090.0,88071.0,0.41863835]
[1769439006476,0.05396815,88090.0,88071.0,0.38454125]
[1769439006683,0.03,88090.0,88071.0,0.35044415]
[1769439006882,0.03,88090.0,88048.0,0.00914729]
[1769439006883,0.03,88070.0,88048.0,0.00914729]
[1769439007095,0.03,88070.0,88053.0,0.64620048]
[1769439007302,0.03,88068.0,88044.0,0.17448]
[1769439007507,0.68579565,88074.0,88044.0,0.17448]
[1769439007508,0.03,88066.0,88044.0,0.17448]
[1769439007720,0.05396815,88064.0,88044.0,0.140377]
[1769439007971,0.05396815,88062.0,88043.0,0.64600048]
[1769439008270,0.21992,88088.0,88039.0,0.04544]
[1769439008271,0.03,88060.0,88039.0,0.04544]
[1769439008475,0.03,88056.0,88039.0,0.04544]
[1769439009111,0.03,88052.0,88039.0,0.04544]
[1769439009335,0.03,88050.0,88039.0,0.04544]
[1769439009695,0.03,88050.0,88037.0,0.0002]
[1769439009904,0.65476696,88065.0,88037.0,0.0002]
[1769439010109,0.02396815,88063.0,88040.0,0.47381674]
[1769439010309,0.03,88062.0,88040.0,0.47381674]
[1769439010511,0.03,88062.0,88037.0,0.0002]
[1769439010717,0.03,88056.0,88037.0,0.0002]
[1769439010915,0.05396815,88056.0,88037.0,0.0002]
[1769439011117,0.03,88056.0,88037.0,0.0002]
[1769439011854,0.03,88055.0,88037.0,0.0002]
[1769439012269,0.03,88055.0,88038.0,0.64600048]
[1769439012950,0.03,88061.0,88038.0,0.64600048]
[1769439013408,0.03,88055.0,88037.0,0.0002]
[1769439013590,0.03,88053.0,88037.0,0.0002]
[1769439014016,0.54655644,88051.0,88037.0,0.0002]
[1769439014176,0.05465564,88054.0,88030.0,0.0002]
[1769439014177,0.05396815,88049.0,88030.0,0.0002]
[1769439014388,0.03,88047.0,88030.0,0.0002]
[1769439016004,0.71742062,88047.0,88024.0,0.02261878]
[1769439016242,0.02396815,88048.0,88024.0,0.02261878]
[1769439016243,0.03,88045.0,88024.0,0.02261878]
[1769439016677,0.71742062,88041.0,88017.0,0.0002]
[1769439016890,0.03,88039.0,88035.0,0.02999999]
[1769439017105,0.06250863,88036.0,88035.0,0.0202]
[1769439017325,0.03250863,88035.0,88034.0,0.03]
[1769439017536,0.19848815,88035.0,88034.0,0.03]
[1769439017749,0.17452,88035.0,88034.0,0.03]
[1769439018162,0.001,88039.0,88034.0,0.03]
[1769439018378,0.03,88038.0,88034.0,0.03]
[1769439018588,0.17452,88047.0,88038.0,0.009]
[1769439019252,0.02259586,88082.0,88039.0,0.6446012]
[1769439019449,0.02259586,88068.0,88039.0,0.66902799]
[1769439019624,0.03469126,88067.0,88050.0,0.47381674]
[1769439019880,0.03469126,88067.0,88058.0,0.47381674]
[1769439019881,0.03,88067.0,88058.0,0.47381674]
[1769439020080,0.03,88067.0,88059.0,0.04738167]
[1769439020282,0.02259586,88083.0,88067.0,0.009]
[1769439020455,0.03,88082.0,88070.0,0.47381674]
[1769439020657,0.03,88082.0,88072.0,0.47381674]
[1769439020860,0.02316786,88107.0,88075.0,0.6446012]
[1769439021073,0.02316786,88107.0,88090.0,0.47381674]
[1769439021289,0.02316786,88107.0,88097.0,0.47381674]
[1769439021706,0.03,88106.0,88090.0,0.47501181]
[1769439022128,0.03,88106.0,88080.0,0.4994386]
[1769439022327,0.03,88106.0,88090.0,0.47501181]
[1769439022542,0.03,88105.0,88080.0,0.51103468]
[1769439022829,0.03,88105.0,88077.0,0.6446012]
[1769439022830,0.00524366,88104.0,88073.0,0.17456]
[1769439022992,0.03,88100.0,88070.0,0.47501181]
[1769439023337,0.03,88095.0,88067.0,0.6446012]
[1769439023744,0.00524366,88094.0,88063.0,0.02442679]
[1769439024045,0.03,88085.0,88057.0,0.17452]
[1769439024343,0.00524366,88078.0,88050.0,0.47501181]
[1769439025413,0.02259586,88072.0,88042.0,0.17452]
[1769439025609,0.06803586,88087.0,88072.0,0.009]
[1769439025788,0.021996,88086.0,88060.0,0.47501181]
[1769439026206,0.06803586,88087.0,88041.0,0.05448786]
[1769439026207,0.04544,88087.0,88070.0,0.47501181]
[1769439026406,0.03,88086.0,88070.0,0.47501181]
[1769439026605,0.03,88086.0,88062.0,0.66902799]
[1769439027195,0.000572,88107.0,88070.0,0.47501181]
[1769439027393,0.000572,88107.0,88097.0,0.47501181]
[1769439027602,0.000572,88107.0,88090.0,0.47501181]
[1769439028590,0.001572,88107.0,88090.0,0.47501181]
[1769439029180,0.001572,88107.0,88080.0,0.47501181]
[1769439029424,0.001572,88107.0,88080.0,0.54240767]
[1769439029625,0.03,88102.0,88070.0,0.47501181]
[1769439029836,0.000572,88107.0,88068.0,0.6446012]
[1769439029837,0.03,88097.0,88068.0,0.6446012]
[1769439030006,0.03,88097.0,88070.0,0.47501181]
[1769439030798,0.03,88095.0,88070.0,0.47501181]
[1769439030998,0.03,88095.0,88070.0,0.58661459]
[1769439031239,0.03,88095.0,88070.0,0.47501181]
[1769439031399,0.00524366,88099.0,88068.0,0.6446012]
[1769439031400,0.03,88093.0,88068.0,0.6446012]
[1769439031801,0.03,88093.0,88070.0,0.47501181]
[1769439032555,0.03,88092.0,88080.0,0.47501181]
[1769439032896,0.03,88092.0,88071.0,0.6446012]
[1769439033098,0.03,88092.0,88072.0,0.11160278]
[1769439033327,0.03,88092.0,88071.0,0.6446012]
[1769439033526,0.03,88091.0,88071.0,0.6446012]
[1769439033736,0.03,88091.0,88080.0,0.47501181]
[1769439034433,0.000572,88107.0,88091.0,0.009]
[1769439034656,0.03,88105.0,88091.0,0.009]
[1769439034817,0.03,88105.0,88090.0,0.47501181]
[1769439035735,0.03,88104.0,88090.0,0.47501181]
[1769439035932,0.03,88104.0,88076.0,0.02442679]
[1769439035933,0.00524366,88101.0,88051.0,0.1482]
[1769439036134,0.001,88090.0,88071.0,0.6446012]
[1769439036334,0.001,88090.0,88070.0,0.47501181]
[1769439036335,0.001,88090.0,88073.0,0.6446012]
[1769439036605,0.03,88099.0,88080.0,0.47501181]
[1769439036736,0.05259586,88099.0,88080.0,0.47501181]
[1769439036945,0.00677003,88098.0,88080.0,0.47501181]
[1769439037160,0.03,88097.0,88080.0,0.47501181]
[1769439037780,0.03,88093.0,88073.0,0.6446012]
[1769439038669,0.03,88091.0,88073.0,0.6446012]
[1769439038886,0.03,88089.0,88073.0,0.6446012]
[1769439039283,0.03,88087.0,88070.0,0.47501181]
[1769439039519,0.00986079,88104.0,88061.0,0.6446012]
[1769439039520,0.03,88085.0,88061.0,0.6446012]
[1769439039727,0.03,88079.0,88050.0,0.47501181]
[1769439039900,0.04544,88088.0,88050.0,0.58661459]
[1769439039901,0.03,88073.0,88050.0,0.58661459]
[1769439040105,0.00524366,88077.0,88050.0,0.58661459]
[1769439040106,0.03,88069.0,88050.0,0.47501181]
[1769439040420,0.05259586,88069.0,88059.0,0.47501181]
[1769439040642,0.02183919,88069.0,88059.0,0.47501181]
[1769439040965,0.02259586,88062.0,88045.0,0.17452]
[1769439041283,0.03,88057.0,88045.0,0.17452]
[1769439041583,0.03,88057.0,88040.0,0.47501181]
[1769439041784,0.03,88057.0,88029.0,0.04544]
[1769439041785,0.02259586,88054.0,88024.0,0.01139263]
[1769439041986,0.04544,88066.0,87998.0,0.0001]
[1769439041987,0.03,88049.0,88030.0,0.47501181]
[1769439042188,0.03,88043.0,88020.0,0.47501181]
[1769439042333,0.03,88043.0,88030.0,0.47501181]
[1769439042923,0.02259586,88054.0,88043.0,0.009]
[1769439043321,0.03,88053.0,88043.0,0.009]
[1769439043521,0.03,88051.0,88031.0,0.6446012]
[1769439043946,0.03980359,88051.0,88031.0,0.6446012]
[1769439044353,0.03,88051.0,88040.0,0.47501181]
[1769439045503,0.03,88051.0,88031.0,0.6446012]
[1769439045740,0.03,88051.0,88040.0,0.47501181]
[1769439046367,0.00524366,88071.0,88041.0,0.6446012]
[1769439046368,0.03,88071.0,88041.0,0.6446012]
[1769439046485,0.03,88069.0,88052.0,0.6446012]
[1769439046685,0.03,88069.0,88060.0,0.47501181]
[1769439046890,0.17452,88086.0,88060.0,0.47501181]
[1769439046891,0.02259586,88082.0,88061.0,0.6446012]
[1769439047100,0.00565566,88095.0,88070.0,0.47501181]
[1769439047300,0.0242128,88095.0,88080.0,0.47501181]
[1769439047565,0.03,88094.0,88080.0,0.47501181]
[1769439048688,0.03,88094.0,88080.0,0.58661459]
[1769439048859,0.03,88093.0,88081.0,0.60909617]
[1769439049492,0.0903436,88122.0,88094.0,0.60909617]
[1769439049762,0.000502,88126.0,88100.0,0.47501181]
[1769439049763,0.11296404,88121.0,88100.0,0.47501181]
[1769439049952,0.03,88120.0,88100.0,0.53398956]
[1769439050976,0.000502,88126.0,88100.0,0.53398956]
[1769439050977,0.05340543,88124.0,88100.0,0.47501181]
[1769439051177,0.05340543,88124.0,88099.0,0.60909617]
[1769439051178,0.001,88100.0,88094.0,0.17452]
[1769439051473,0.03,88109.0,88081.0,0.60909617]
[1769439051675,0.02340543,88106.0,88083.0,0.17452]
[1769439051875,0.05340543,88105.0,88083.0,0.17452]
[1769439052086,0.03,88105.0,88081.0,0.60909617]
[1769439052323,0.03,88101.0,88080.0,0.17452]
[1769439052534,0.03,88099.0,88080.0,0.64953181]
[1769439054324,0.03,88107.0,88080.0,0.64953181]
[1769439054524,0.03,88101.0,88080.0,0.17452]
[1769439054730,0.03,88097.0,88080.0,0.17452]
[1769439054986,0.03,88097.0,88071.0,0.65453617]
[1769439055306,0.03,88097.0,88080.0,0.47501181]
[1769439057426,0.0903436,88122.0,88088.0,0.60909617]
[1769439057427,0.02340543,88122.0,88088.0,0.60909617]
[1769439057640,0.13450679,88130.0,88087.0,0.47501181]
[1769439057641,0.02340543,88120.0,88100.0,0.47501181]
[1769439057841,0.63057739,88135.0,88101.0,0.60909617]